bitfinex/quotes_SOLUSD_20250417
["timestamp","ask_amount","ask_price","bid_price","bid_amount"]
[1744899074369,0.063,131.63,131.62,38.74505995]
[1744899074986,0.063,131.63,131.62,39.02938309]
[1744899075792,0.063,131.63,131.6,237.06]
[1744899075982,0.063,131.63,131.61,49.96743042]
[1744899076393,0.063,131.63,131.55,18.64964886]
[1744899076394,38.74548737,131.62,131.56,26.42099808]
[1744899076577,38.74548737,131.62,131.57,31.14743042]
[1744899077382,7.59805695,131.62,131.58,31.14743042]
[1744899077694,14.25988279,131.63,131.6,31.14743042]
[1744899078407,14.25988279,131.63,131.57,0.28432314]
[1744899078606,45.40731321,131.63,131.58,31.14743042]
[1744899078904,45.40731321,131.63,131.57,0.28432314]
[1744899078905,14.25988279,131.63,131.59,31.14743042]
[1744899080005,31.14743042,131.62,131.56,18.82]
[1744899080203,31.14743042,131.61,131.56,49.96743042]
[1744899080414,31.14743042,131.6,131.56,18.82]
[1744899080709,38.74679207,131.59,131.56,18.82]
[1744899081021,57.7451962,131.59,131.53,0.03]
[1744899081302,7.59936165,131.59,131.56,31.14743042]
[1744899082304,7.59936165,131.59,131.57,31.14743042]
[1744899082509,9.25933941,131.61,131.58,31.14743042]
[1744899083310,6.96470402,131.62,131.59,31.14743042]
[1744899083985,38.11213444,131.62,131.58,49.96743042]
[1744899084604,38.74679207,131.59,131.53,0.03]
[1744899084791,38.74679207,131.59,131.54,49.96743042]
[1744899085099,57.7451962,131.59,131.54,49.96743042]
[1744899085300,57.7451962,131.59,131.54,18.82]
[1744899085301,31.14743042,131.58,131.54,18.82]
[1744899085800,57.7451962,131.59,131.54,49.96743042]
[1744899086697,57.7451962,131.59,131.56,31.14743042]
[1744899086698,7.59936165,131.59,131.56,31.14743042]
[1744899086901,7.59936165,131.59,131.55,31.14743042]
[1744899087094,7.59936165,131.59,131.56,31.14743042]
[1744899087598,7.59936165,131.59,131.55,31.14743042]
[1744899087805,38.74679207,131.59,131.55,31.14743042]
[1744899088384,7.59936165,131.59,131.54,18.82]
[1744899088601,38.74679207,131.59,131.55,31.14743042]
[1744899088806,7.59936165,131.59,131.55,31.14743042]
[1744899089105,6.6626,131.63,131.58,31.14743042]
[1744899089306,14.25981426,131.63,131.59,49.96743042]
[1744899089485,147.19987553,131.63,131.59,18.82]
[1744899089889,31.14743042,131.62,131.59,18.82]
[1744899090093,147.19987553,131.63,131.59,18.82]
[1744899090293,97.05981426,131.63,131.59,49.96743042]
[1744899090498,147.19987553,131.63,131.59,18.82]
[1744899090696,147.19987553,131.63,131.59,49.96743042]
[1744899091198,116.05244511,131.63,131.59,49.96743042]
[1744899091403,147.19987553,131.63,131.59,49.96743042]
[1744899091905,147.19987553,131.63,131.59,18.82]
[1744899092088,31.14743042,131.6,131.55,49.44743042]
[1744899092285,31.14743042,131.59,131.55,49.44743042]
[1744899092489,31.14743042,131.6,131.55,49.44743042]
[1744899092686,31.14743042,131.59,131.55,49.44743042]
[1744899092904,31.14743042,131.6,131.55,49.44743042]
[1744899093101,26.59372387,131.61,131.56,31.14743042]
[1744899093409,31.14743042,131.6,131.55,49.44743042]
[1744899095311,31.14743042,131.59,131.55,49.44743042]
[1744899095611,31.14743042,131.59,131.55,18.3]
[1744899097128,7.5999392,131.58,131.55,18.3]
[1744899097421,7.5999392,131.58,131.55,49.44743042]
[1744899098105,7.5999392,131.58,131.56,31.14743042]
[1744899098416,7.5999392,131.58,131.57,31.14743042]
[1744899098716,7.5999392,131.58,131.56,31.14743042]
[1744899099018,7.59903312,131.6,131.57,31.14743042]
[1744899099198,7.59762953,131.62,131.58,31.14743042]
[1744899099402,26.59170337,131.62,131.58,49.44743042]
[1744899100096,57.73913379,131.62,131.58,18.3]
[1744899100917,31.14743042,131.61,131.58,18.3]
[1744899101123,31.14743042,131.6,131.58,18.3]
[1744899101423,31.14743042,131.59,131.53,0.03]
[1744899101717,31.14743042,131.6,131.55,31.14743042]
[1744899101912,31.14743042,131.6,131.54,18.3]
[1744899102090,31.14743042,131.59,131.54,49.44743042]
[1744899102495,31.14743042,131.57,131.54,18.3]
[1744899102693,0.063,131.63,131.57,18.79181043]
[1744899103018,0.063,131.63,131.62,31.14743042]
[1744899103194,0.063,131.63,131.62,49.44743042]
[1744899103592,0.063,131.63,131.62,18.3]
[1744899105498,0.063,131.63,131.62,49.44743042]
[1744899106204,0.063,131.63,131.62,57.32938309]
[1744899109407,0.063,131.63,131.62,75.97903195]
[1744899110123,0.063,131.65,131.64,44.64964886]
[1744899110319,0.063,131.67,131.65,0.28432314]
[1744899110530,0.063,131.67,131.66,62.57918398]
[1744899110722,0.063,131.67,131.66,31.43175356]
[1744899111225,0.063,131.67,131.66,39.02707484]
[1744899111433,0.063,131.67,131.66,70.17450526]
[1744899112530,0.063,131.67,131.66,88.82415412]
[1744899113113,0.063,131.69,131.67,0.28432314]
[1744899113333,0.063,131.69,131.68,49.73175356]
[1744899114012,0.063,131.69,131.68,68.38140242]
[1744899114427,0.063,131.69,131.68,75.97557009]
[1744899115315,0.063,131.69,131.68,57.32592123]
[1744899119735,0.063,131.75,131.74,0.28432314]
[1744899120055,0.063,131.77,131.74,80.87918398]
[1744899120357,0.063,131.77,131.76,38.73698718]
[1744899121718,0.063,131.77,131.76,31.14743042]
[1744899121923,0.063,131.77,131.76,38.73698718]
[1744899122136,0.063,131.77,131.76,39.02131032]
[1744899122314,0.063,131.77,131.76,31.43175356]
[1744899122838,0.063,131.77,131.76,49.71175356]
[1744899123342,0.063,131.77,131.76,49.42743042]
[1744899127139,0.063,131.77,131.76,49.71175356]
[1744899127645,0.063,131.77,131.76,57.30131032]
[1744899127816,0.063,131.77,131.76,75.95095918]
[1744899129943,0.063,131.78,131.77,18.933972]
[1744899130242,0.063,131.78,131.77,50.08140242]
[1744899130438,0.063,131.83,131.77,183.3428352]
[1744899130740,0.063,131.83,131.82,31.43175356]
[1744899130942,0.063,131.83,131.82,49.69175356]
[1744899131429,0.063,131.85,131.83,0.28432314]
[1744899131632,0.063,131.85,131.84,31.43175356]
[1744899131935,0.063,131.85,131.84,0.28432314]
[1744899132134,0.063,131.85,131.84,31.43175356]
[1744899133124,0.063,131.85,131.84,39.01670501]
[1744899133444,0.063,131.85,131.84,31.43175356]
[1744899134035,0.063,131.85,131.84,31.28959199]
[1744899134355,0.063,131.85,131.84,31.43175356]
[1744899135326,22.7530247,131.9,131.84,39.01670501]
[1744899135641,53.90045512,131.9,131.86,31.14743042]
[1744899135949,53.90045512,131.9,131.87,18.26]
[1744899136122,22.7530247,131.9,131.87,18.26]
[1744899136523,7.58233354,131.89,131.87,49.40743042]
[1744899136726,3.79818681,131.9,131.88,0.28432314]
[1744899136927,1.5702,131.91,131.9,0.28432314]
[1744899136928,0.063,131.91,131.9,0.28432314]
[1744899137149,0.063,131.91,131.87,7.5832233]
[1744899137454,0.063,131.91,131.89,0.28432314]
[1744899137632,0.063,131.91,131.9,18.26]
[1744899138139,0.063,131.91,131.9,18.54432314]
[1744899138332,0.063,131.91,131.9,49.69175356]
[1744899138730,0.063,131.91,131.9,57.27325469]
[1744899141653,0.063,131.91,131.9,49.69175356]
[1744899142028,0.063,131.91,131.9,57.27325469]
[1744899146035,0.063,131.91,131.9,49.69175356]
[1744899146342,0.063,131.91,131.9,49.54959199]
[1744899146859,0.063,131.91,131.9,57.27325469]
[1744899147237,0.063,131.91,131.9,39.01325469]
[1744899147433,0.063,131.91,131.9,57.25325469]
[1744899148156,0.063,131.91,131.9,75.90290355]
[1744899148552,0.063,131.91,131.9,101.90290355]
[1744899148743,0.063,131.91,131.9,57.25325469]
[1744899149549,0.063,131.91,131.9,49.67175356]
[1744899149746,0.063,131.91,131.86,236.54]
[1744899149963,0.063,131.91,131.87,18.24]
[1744899150258,0.063,131.91,131.9,31.14743042]
[1744899150653,0.063,131.91,131.9,31.28959199]
[1744899150947,0.063,131.91,131.9,31.43175356]
[1744899151360,0.063,131.91,131.9,0.14216157]
[1744899151742,0.063,131.91,131.9,0.28432314]
[1744899152063,0.063,131.91,131.87,25.82308415]
[1744899152248,0.063,131.91,131.9,31.14743042]
[1744899152573,0.063,131.91,131.9,31.43175356]
[1744899153938,1.6334,131.91,131.9,0.28432314]
[1744899154356,1.6334,131.91,131.88,31.14743042]
[1744899154559,1.6334,131.91,131.89,17.76]
[1744899154758,1.6334,131.91,131.89,48.90743042]
[1744899155261,1.6334,131.91,131.89,37.06013486]
[1744899155451,9.21481419,131.91,131.89,37.06013486]
[1744899156153,9.21481419,131.91,131.89,17.76]
[1744899156551,25.45913486,131.9,131.81,19.30013486]
[1744899156862,19.30013486,131.89,131.84,19.30013486]
[1744899157440,7.58265089,131.88,131.85,0.28432314]
[1744899157654,7.58265089,131.88,131.85,0.14216157]
[1744899158261,19.30013486,131.87,131.82,37.06013486]
[1744899158641,19.30013486,131.87,131.83,19.30013486]
[1744899158958,45.83941298,131.88,131.83,19.30013486]
[1744899159854,45.83941298,131.88,131.82,17.76]
[1744899160163,45.83941298,131.88,131.83,19.30013486]
[1744899160565,19.30013486,131.87,131.83,19.30013486]
[1744899161050,45.83941298,131.88,131.83,19.30013486]
[1744899161253,19.30013486,131.87,131.83,19.30013486]
[1744899161451,19.30013486,131.86,131.82,17.76]
[1744899161653,26.88451104,131.85,131.82,17.76]
[1744899161853,6.2444,131.83,131.82,17.76]
[1744899162066,6.2444,131.83,131.8,19.33013486]
[1744899162249,6.2444,131.83,131.8,0.03]
[1744899162453,6.2444,131.83,131.8,19.33013486]
[1744899163551,6.2444,131.83,131.81,19.30013486]
[1744899164044,7.58610226,131.82,131.81,19.30013486]
[1744899164248,6.2444,131.83,131.81,19.30013486]
[1744899164766,13.83015631,131.83,131.81,19.30013486]
[1744899165156,13.83015631,131.83,131.8,0.03]
[1744899165157,19.30013486,131.82,131.8,0.03]
[1744899165359,120.74978372,131.81,131.8,0.03]
[1744899165555,140.04991858,131.81,131.76,0.03]
[1744899165867,19.30013486,131.77,131.76,0.03]
[1744899166366,26.88911565,131.77,131.76,0.03]
[1744899166749,26.88911565,131.77,131.76,1e-08]
[1744899166951,45.86156764,131.77,131.72,0.03]
[1744899167156,30.97650314,131.74,131.72,0.03]
[1744899167366,30.97650314,131.73,131.72,0.03]
[1744899167584,32.54380314,131.73,131.72,0.03]
[1744899168459,40.13508834,131.73,131.72,0.03]
[1744899169172,64.8865372,131.73,131.72,0.03]
[1744899169558,56.97650314,131.72,131.71,0.03]
[1744899169757,18.64964886,131.71,131.69,0.03]
[1744899169968,30.97650314,131.7,131.69,0.03]
[1744899170155,132.426152,131.7,131.69,0.03]
[1744899170346,166.01916642,131.7,131.69,0.03]
[1744899170761,116.39301442,131.7,131.69,0.03]
[1744899171072,38.93050314,131.77,131.7,0.28432314]
[1744899171280,7.58955676,131.76,131.74,30.97650314]
[1744899171582,7.58955676,131.76,131.73,30.97650314]
[1744899171765,7.58955676,131.76,131.72,30.97650314]
[1744899172360,7.58955676,131.76,131.74,30.97650314]
[1744899172570,7.58955676,131.76,131.73,30.97650314]
[1744899173279,15.54320224,131.77,131.74,30.97650314]
[1744899173471,9.19910224,131.77,131.75,30.97650314]
[1744899174176,9.19910224,131.77,131.73,30.97650314]
[1744899174354,40.17560538,131.77,131.72,30.97650314]
[1744899174557,30.97650314,131.76,131.71,30.97650314]
[1744899174949,40.17560538,131.77,131.72,30.97650314]
[1744899175153,90.38859354,131.78,131.75,30.97650314]
[1744899175458,30.97650314,131.77,131.7,7.59282803]
[1744899175659,7.58859354,131.78,131.72,30.97650314]
[1744899175859,30.97650314,131.77,131.71,0.28432314]
[1744899176062,7.58859354,131.78,131.74,30.97650314]
[1744899176758,7.58859354,131.78,131.73,30.97650314]
[1744899176958,7.58859354,131.78,131.72,7.87616137]
[1744899176959,7.58859354,131.78,131.74,30.97650314]
[1744899178880,7.58859354,131.78,131.72,7.87616137]
[1744899179078,7.58859354,131.78,131.74,30.97650314]
[1744899180568,38.56509668,131.78,131.73,30.97650314]
[1744899180771,38.56509668,131.78,131.72,0.28432314]
[1744899181084,38.56509668,131.78,131.73,30.97650314]
[1744899181586,57.53610897,131.78,131.72,0.28432314]
[1744899181785,30.97650314,131.76,131.72,31.26082628]
[1744899182290,26.55960583,131.78,131.72,31.26082628]
[1744899182462,30.97650314,131.77,131.72,31.26082628]
[1744899183766,7.58954206,131.77,131.73,30.97650314]
[1744899184612,108.8,131.79,131.75,30.97650314]
[1744899184781,26.0,131.79,131.76,30.97650314]
[1744899184977,7.58725341,131.8,131.77,30.97650314]
[1744899185381,38.56375655,131.8,131.75,31.26082628]
[1744899185588,7.58725341,131.8,131.76,30.97650314]
[1744899185897,98.07485354,131.81,131.78,30.97650314]
[1744899186090,7.58630059,131.82,131.8,30.97650314]
[1744899186300,7.58630059,131.82,131.79,30.97650314]
[1744899187021,7.58630059,131.82,131.77,30.97650314]
[1744899187022,38.56280373,131.82,131.77,30.97650314]
[1744899187317,30.97650314,131.78,131.73,17.48]
[1744899187480,56.97650314,131.78,131.73,48.45650314]
[1744899187881,38.56548393,131.77,131.73,17.48]
[1744899188077,30.97650314,131.76,131.73,17.48]
[1744899188281,30.97650314,131.74,131.69,48.46650314]
[1744899188510,30.97650314,131.73,131.69,17.49]
[1744899188712,7.6578,131.78,131.69,17.49]
[1744899188713,7.6578,131.78,131.72,49.626152]
[1744899188878,7.58667779,131.81,131.77,30.97650314]
[1744899189082,7.58667779,131.81,131.78,30.97650314]
[1744899189298,7.58667779,131.81,131.77,31.26082628]
[1744899189804,7.58667779,131.81,131.77,30.97650314]
[1744899190217,7.58667779,131.81,131.76,48.43650314]
[1744899190588,33.58667779,131.81,131.76,48.43650314]
[1744899190788,64.56318093,131.81,131.76,48.43650314]
[1744899191620,26.0,131.81,131.78,30.97650314]
[1744899191918,33.58671411,131.81,131.78,30.97650314]
[1744899192086,26.0,131.81,131.78,30.97650314]
[1744899192486,26.0,131.83,131.8,30.97650314]
[1744899192892,7.58567897,131.83,131.79,31.26082628]
[1744899193503,26.063,131.84,131.81,0.28432314]
[1744899193688,0.063,131.84,131.81,30.97650314]
[1744899193998,7.64807156,131.84,131.8,31.26082628]
[1744899194898,38.6245747,131.84,131.8,0.28432314]
[1744899195104,38.6245747,131.84,131.79,48.43650314]
[1744899196507,30.97650314,131.8,131.75,17.46]
[1744899196814,30.97650314,131.8,131.76,0.28432314]
[1744899197389,26.0,131.82,131.75,17.46]
[1744899197390,30.97650314,131.79,131.75,17.46]
[1744899197591,30.97650314,131.76,131.7,7.59291415]
[1744899197790,30.97650314,131.73,131.7,17.46]
[1744899197986,7.5912852,131.73,131.7,17.46]
[1744899198193,7.5912852,131.73,131.7,48.43650314]
[1744899198386,7.5912852,131.73,131.7,17.46]
[1744899198696,38.56778834,131.73,131.7,17.46]
[1744899199419,30.97650314,131.71,131.69,0.03]
[1744899199992,7.59301442,131.7,131.69,0.03]
[1744899201507,38.56951756,131.7,131.69,0.03]
[1744899201720,26.0,131.68,131.67,0.03]
[1744899201919,56.97650314,131.68,131.67,0.03]
[1744899202105,64.57067081,131.68,131.67,0.03]
[1744899206200,83.22031967,131.68,131.67,0.03]
[1744899206431,83.22031967,131.68,131.67,1e-08]
[1744899206802,18.64964886,131.67,131.65,0.03]
[1744899207002,30.97650314,131.66,131.65,0.03]
[1744899207724,49.626152,131.66,131.65,0.03]
[1744899208232,26.0,131.63,131.61,17.51]
[1744899209000,7.59762953,131.62,131.61,17.51]
[1744899210117,18.64964886,131.66,131.62,0.28432314]
[1744899210118,7.59532128,131.66,131.62,0.28432314]
[1744899210319,7.59532128,131.66,131.64,30.97650314]
[1744899211099,57.55432208,131.69,131.64,30.97650314]
[1744899211305,30.97650314,131.68,131.64,30.97650314]
[1744899211520,30.97650314,131.68,131.63,30.97650314]
[1744899211721,30.97650314,131.67,131.62,31.26082628]
[1744899212205,30.97650314,131.67,131.61,17.51]
[1744899212206,30.97650314,131.64,131.61,17.51]
[1744899212413,30.97650314,131.63,131.61,17.51]
[1744899212624,30.97650314,131.64,131.61,17.51]
[1744899213011,7.59705234,131.63,131.61,17.51]
[1744899215225,30.97650314,131.62,131.61,0.03]
[1744899217015,7.59705234,131.63,131.61,0.03]
[1744899217326,38.57413267,131.62,131.61,0.03]
[1744899217732,7.59762953,131.62,131.61,0.03]
[1744899218037,38.57413267,131.62,131.61,0.03]
[1744899219706,57.56820651,131.62,131.58,0.03]
[1744899220123,30.97650314,131.59,131.58,1e-08]
[1744899220541,38.95970314,131.57,131.53,0.03]
[1744899220832,30.97650314,131.54,131.53,0.03]
[1744899221343,57.22840226,131.54,131.53,1e-08]
[1744899221512,107.21053106,131.54,131.49,0.03]
[1744899221704,30.97650314,131.5,131.49,0.03]
[1744899223342,38.58106587,131.5,131.49,1e-08]
[1744899223634,38.58106587,131.5,131.45,0.03]
[1744899223635,121.93213525,131.5,131.45,0.03]
[1744899223828,30.97650314,131.47,131.45,0.03]
[1744899225233,7.60687661,131.46,131.45,0.03]
[1744899227031,7.60644102,131.47,131.45,31.00650314]
[1744899227231,7.6057195,131.48,131.45,0.03]
[1744899227845,38.58222264,131.48,131.45,0.03]
[1744899228141,30.97650314,131.47,131.45,0.03]
[1744899228346,30.97650314,131.46,131.45,0.03]
[1744899229432,57.23302861,131.46,131.45,0.03]
[1744899229632,107.22672329,131.46,131.43,0.03]
[1744899229833,49.626152,131.44,131.43,0.03]
[1744899230255,49.626152,131.44,131.43,1e-08]
[1744899230431,39.03540314,131.44,131.42,1e-08]
[1744899230744,30.97650314,131.45,131.42,1e-08]
[1744899231127,30.97650314,131.44,131.42,1e-08]
[1744899231328,7.60861294,131.43,131.42,1e-08]
[1744899232052,7.6074553,131.45,131.42,30.97650315]
[1744899232227,7.6074553,131.45,131.42,1e-08]
[1744899233433,30.97650314,131.44,131.42,1e-08]
[1744899233631,57.6025967,131.45,131.42,1e-08]
[1744899233835,26.62609356,131.45,131.42,1e-08]
[1744899234137,30.97650314,131.44,131.42,1e-08]
[1744899234333,57.6025967,131.45,131.42,1e-08]
[1744899235349,7.6074553,131.45,131.42,1e-08]
[1744899235571,7.6074553,131.45,131.43,30.97650314]
[1744899235741,7.6074553,131.45,131.42,1e-08]
[1744899236050,7.6074553,131.45,131.42,30.97650315]
[1744899236429,7.6074553,131.45,131.43,30.97650314]
[1744899236643,7.60687661,131.46,131.42,30.97650315]
[1744899238552,38.58337975,131.46,131.42,1e-08]
[1744899238848,30.97650314,131.45,131.42,1e-08]
[1744899239236,30.97650314,131.43,131.42,1e-08]
[1744899239533,7.60656644,131.47,131.42,30.97650315]
[1744899239734,7.60656644,131.47,131.44,30.97650314]
[1744899240037,7.60598624,131.48,131.45,30.97650314]
[1744899240854,57.59269016,131.5,131.45,30.97650314]
[1744899241151,30.97650314,131.49,131.45,30.97650314]
[1744899241352,57.59269016,131.5,131.45,30.97650314]
[1744899241648,57.59269016,131.5,131.42,1e-08]
[1744899241649,57.59269016,131.5,131.46,30.97650314]
[1744899242058,30.97650314,131.49,131.42,1e-08]
[1744899242352,57.59269016,131.5,131.45,30.97650314]
[1744899242758,30.97650314,131.48,131.43,30.97650314]
[1744899242952,26.61618702,131.5,131.46,30.97650314]
[1744899243252,7.60456273,131.5,131.47,30.97650314]
[1744899243555,38.07425133,131.54,131.49,30.97650314]
[1744899243556,0.063,131.54,131.49,30.97650314]
[1744899243739,0.063,131.54,131.51,30.97650314]
[1744899243933,0.063,131.54,131.52,30.97650314]
[1744899244135,0.063,131.54,131.51,30.97650314]
[1744899244660,31.03950314,131.54,131.5,17.04]
[1744899244958,30.97650314,131.53,131.5,17.04]
[1744899245536,30.97650314,131.53,131.47,0.28432314]
[1744899245537,30.97650314,131.51,131.47,0.28432314]
[1744899245838,30.97650314,131.53,131.48,30.97650314]
[1744899246450,31.03950314,131.54,131.49,30.97650314]
[1744899246853,7.60282825,131.53,131.49,30.97650314]
[1744899248859,7.66525026,131.54,131.5,30.97650314]
[1744899249258,7.66525026,131.54,131.51,30.97650314]
[1744899249561,38.6417534,131.54,131.49,30.97650314]
[1744899250159,7.66525026,131.54,131.49,48.01650314]
[1744899250350,30.97650314,131.52,131.49,17.04]
[1744899250652,30.97650314,131.51,131.49,17.04]
[1744899250864,26.67087592,131.54,131.45,17.04]
[1744899250865,30.97650314,131.5,131.45,17.04]
[1744899251033,7.60514107,131.49,131.45,48.01650314]
[1744899251230,7.60514107,131.49,131.46,30.97650314]
[1744899251457,7.60514107,131.49,131.45,48.01650314]
[1744899252157,7.60340632,131.52,131.48,30.97650314]
[1744899252340,7.60340632,131.52,131.5,30.97650314]
[1744899252538,0.063,131.54,131.51,48.01650314]
[1744899252856,0.063,131.6,131.54,6.4768]
[1744899253159,0.063,131.6,131.59,30.97650314]
[1744899253943,0.063,131.6,131.59,31.26082628]
[1744899255946,0.063,131.6,131.57,17.04]
[1744899256556,31.03950314,131.6,131.57,17.04]
[1744899256759,31.03950314,131.6,131.54,237.14]
[1744899256760,30.97650314,131.58,131.54,237.14]
[1744899256948,7.60051683,131.57,131.54,237.14]
[1744899257135,38.57701997,131.57,131.53,48.01650314]
[1744899257333,38.57701997,131.57,131.53,17.04]
[1744899257649,38.57701997,131.57,131.51,17.04]
[1744899257650,30.97650314,131.55,131.51,17.04]
[1744899257969,30.97650314,131.56,131.51,48.01650314]
[1744899258169,26.60180891,131.57,131.53,30.97650314]
[1744899258342,26.60180891,131.57,131.52,30.97650314]
[1744899258343,57.57831205,131.57,131.52,30.97650314]
[1744899259280,7.60051683,131.57,131.55,30.97650314]
[1744899259496,7.59936165,131.59,131.55,30.97650314]
[1744899259671,38.57586479,131.59,131.54,30.97650314]
[1744899260179,30.97650314,131.58,131.53,30.97650314]
[1744899260578,30.97650314,131.57,131.52,31.26082628]
[1744899260892,30.97650314,131.58,131.54,30.97650314]
[1744899261261,7.60051683,131.57,131.54,30.97650314]
[1744899261888,7.60051683,131.57,131.53,30.97650314]
[1744899262496,7.60051683,131.57,131.54,30.97650314]
[1744899263383,7.5999392,131.58,131.52,7.88753997]
[1744899263579,7.5999392,131.58,131.54,30.97650314]
[1744899264679,38.57644234,131.58,131.53,30.97650314]
[1744899264977,7.5999392,131.58,131.54,30.97650314]
[1744899266273,7.5999392,131.58,131.55,30.97650314]
[1744899267381,7.5999392,131.58,131.54,31.26082628]
[1744899267764,7.5999392,131.58,131.54,30.97650314]
[1744899267962,7.5999392,131.58,131.51,24.64370654]
[1744899267963,38.57644234,131.58,131.53,30.67650314]
[1744899268169,7.5999392,131.58,131.54,30.97650314]
[1744899268679,7.5999392,131.58,131.55,30.97650314]
[1744899268883,7.5999392,131.58,131.56,30.97650314]
[1744899269984,7.59936165,131.59,131.55,30.97650314]
[1744899270378,38.57586479,131.59,131.54,30.97650314]
[1744899270763,7.59936165,131.59,131.55,30.97650314]
[1744899271861,7.59936165,131.59,131.55,31.26082628]
[1744899273896,7.59936165,131.59,131.55,48.10082628]
[1744899274077,38.57586479,131.59,131.55,16.84]
[1744899274267,7.59936165,131.59,131.55,47.81650314]
[1744899274993,30.97650314,131.58,131.55,16.84]
[1744899275583,7.60051683,131.57,131.55,16.84]
[1744899275791,38.57701997,131.57,131.55,16.84]
[1744899276195,30.97650314,131.56,131.5,16.84]
[1744899276368,30.97650314,131.56,131.51,30.97650314]
[1744899276702,30.97650314,131.56,131.52,30.97650314]
[1744899276999,7.60051683,131.57,131.53,30.97650314]
[1744899277472,38.57701997,131.57,131.53,30.97650314]
[1744899277979,38.57701997,131.57,131.52,31.26082628]
[1744899278372,7.60051683,131.57,131.53,30.97650314]
[1744899278573,7.60051683,131.57,131.54,30.97650314]
[1744899278773,7.60051683,131.57,131.53,30.97650314]
[1744899281200,26.59900738,131.59,131.53,19.40612989]
[1744899281501,26.59900738,131.59,131.54,19.40612989]
[1744899281708,46.00513727,131.59,131.54,19.40612989]
[1744899282776,26.59900738,131.59,131.55,19.40612989]
[1744899283182,26.59900738,131.59,131.55,36.24612989]
[1744899283808,26.59900738,131.59,131.55,16.84]
[1744899284184,46.00513727,131.59,131.55,16.84]
[1744899284910,26.59900738,131.59,131.55,36.24612989]
[1744899285106,7.59936165,131.59,131.55,36.24612989]
[1744899285281,7.66182321,131.6,131.57,19.40612989]
[1744899286297,0.063,131.6,131.57,19.40612989]
[1744899286607,0.063,131.6,131.56,19.69045303]
[1744899287796,19.46912989,131.6,131.56,0.28432314]
[1744899287986,19.46912989,131.6,131.56,19.69045303]
[1744899288409,7.59936165,131.59,131.56,19.69045303]
[1744899289090,7.59936165,131.59,131.55,16.84]
[1744899289289,19.40612989,131.58,131.55,16.84]
[1744899289893,7.59936165,131.59,131.55,16.84]
[1744899290094,7.66192926,131.6,131.58,19.40612989]
[1744899290299,7.66192926,131.6,131.57,19.40612989]
[1744899290599,7.66192926,131.6,131.56,19.69045303]
[1744899290787,7.66192926,131.6,131.57,19.40612989]
[1744899291414,7.66192926,131.6,131.56,19.69045303]
[1744899291719,7.66192926,131.6,131.57,19.40612989]
[1744899292908,0.063,131.6,131.58,19.40612989]
[1744899293209,0.063,131.6,131.59,19.69045303]
[1744899295010,0.063,131.6,131.59,27.28981468]
[1744899297597,0.063,131.66,131.63,26.28432314]
[1744899297791,0.063,131.66,131.65,19.69045303]
[1744899299396,0.063,131.66,131.65,27.28635124]
[1744899299914,0.063,131.66,131.65,19.69045303]
[1744899300312,0.063,131.66,131.64,36.22612989]
[1744899300641,0.063,131.66,131.63,36.22612989]
[1744899300791,0.063,131.66,131.63,16.82]
[1744899300990,0.063,131.66,131.64,19.40612989]
[1744899301209,0.063,131.66,131.63,36.22612989]
[1744899302096,0.063,131.66,131.64,19.40612989]
[1744899302498,0.063,131.66,131.65,19.40612989]
[1744899302698,0.063,131.66,131.65,19.69045303]
[1744899303107,0.063,131.66,131.64,19.40612989]
[1744899303631,0.063,131.66,131.65,19.40612989]
[1744899304533,0.063,131.66,131.65,19.69045303]
[1744899304830,0.063,131.68,131.67,39.09658292]
[1744899305018,0.063,131.68,131.67,19.69045303]
[1744899307020,0.063,131.68,131.67,19.40612989]
[1744899308414,0.063,131.68,131.63,16.82]
[1744899308618,0.063,131.68,131.64,19.40612989]
[1744899309118,0.063,131.68,131.65,19.40612989]
[1744899309428,0.063,131.68,131.67,39.09658292]
[1744899309800,0.063,131.68,131.67,19.69045303]
[1744899310333,0.063,131.68,131.67,46.69132735]
[1744899310634,0.063,131.68,131.67,27.28519746]
[1744899310924,0.063,131.68,131.67,19.69045303]
[1744899312028,0.063,131.68,131.67,27.28519746]
[1744899314724,0.063,131.72,131.7,26.0]
[1744899314924,0.063,131.72,131.71,36.25045303]
[1744899315127,0.063,131.73,131.72,19.69045303]
[1744899316022,0.063,131.73,131.71,35.96612989]